bitfinex-derivatives/quotes_SOLF0:USTF0_20250911
["timestamp","ask_amount","ask_price","bid_price","bid_amount"]
[1757601448545,3.37100942,226.71,226.55,7.46]
[1757601448744,7.15,226.74,226.55,7.46]
[1757601448952,3.37085398,226.73,226.55,7.46]
[1757601449151,3.37085398,226.72,226.55,7.46]
[1757601449350,3.37085398,226.71,226.55,7.46]
[1757601449550,7.15,226.74,226.55,7.46]
[1757601449750,3.3704272,226.73,226.55,7.46]
[1757601449950,3.3704272,226.72,226.55,7.46]
[1757601450152,3.3704272,226.71,226.55,7.46]
[1757601450448,7.15,226.74,226.55,7.46]
[1757601450652,7.15,226.72,226.55,7.46]
[1757601454455,41.48,226.79,226.55,32.0]
[1757601454658,3.36682736,226.78,226.55,7.46]
[1757601454864,10.51682736,226.77,226.55,7.46]
[1757601455064,7.15,226.75,226.55,7.46]
[1757601455269,7.15,226.73,226.55,7.46]
[1757601455466,7.15,226.71,226.55,7.46]
[1757601457267,3.36688654,226.7,226.55,7.46]
[1757601457469,7.15,226.69,226.55,7.46]
[1757601460069,7.15,226.67,226.5,7.46]
[1757601460266,7.15,226.65,226.5,7.46]
[1757601460466,57.56,226.76,226.5,7.46]
[1757601460467,7.15,226.63,226.5,7.46]
[1757601463171,7.15,226.61,226.45,7.46]
[1757601464164,7.15,226.59,226.45,7.46]
[1757601465570,7.15,226.57,226.41,296.6]
[1757601465778,18.00017548,226.65,226.41,296.6]
[1757601465779,7.15,226.55,226.42,7.46]
[1757601470477,7.15,226.61,226.42,7.46]
[1757601472472,7.15,226.59,226.42,7.46]
[1757601472874,7.15,226.59,226.44,7.46]
[1757601473983,7.15,226.59,226.46,7.46]
[1757601475784,7.15,226.59,226.47,7.46]
[1757601479088,7.15,226.59,226.48,113.62]
[1757601479389,7.15,226.59,226.49,7.4]
[1757601482992,7.15,226.59,226.42,7.20758407]
[1757601482993,6.88,226.67,226.44,7.4]
[1757601483295,14.56,226.68,226.44,7.4]
[1757601483296,6.88,226.65,226.44,7.4]
[1757601483487,3.3628538,226.66,226.44,7.4]
[1757601483488,6.88,226.63,226.44,7.4]
[1757601483691,6.88,226.61,226.44,7.4]
[1757601483888,6.88,226.59,226.44,7.4]
[1757601484694,6.88,226.59,226.45,7.4]
[1757601484890,6.88,226.59,226.45,12.30930889]
[1757601485088,6.88,226.59,226.46,7.4]
[1757601485792,6.88,226.69,226.49,7.4]
[1757601485990,6.88,226.69,226.51,12.30930889]
[1757601486193,6.88,226.69,226.53,7.4]
[1757601486597,6.88,226.69,226.54,7.4]
[1757601488797,6.88,226.67,226.5,7.4]
[1757601490201,6.88,226.67,226.51,7.4]
[1757601490809,314.62190404,226.8,226.52,4.90930889]
[1757601491100,6.88,226.78,226.56,7.4]
[1757601491399,6.88,226.76,226.58,7.4]
[1757601493199,6.88,226.76,226.6,7.4]
[1757601493700,6.88,226.76,226.62,7.4]
[1757601495103,296.56,226.8,226.62,20.59831929]
[1757601495603,6.88,226.78,226.62,20.59831929]
[1757601495802,296.56,226.8,226.62,20.59831929]
[1757601496002,6.88,226.78,226.62,7.4]
[1757601497698,6.88,226.79,226.62,20.75844823]
[1757601497898,6.88,226.79,226.62,7.4]
[1757601501198,6.88,226.79,226.62,13.07788641]
[1757601501398,6.88,226.79,226.6,8.66]
[1757601501399,6.88,226.79,226.63,7.4]
[1757601502799,6.88,226.79,226.64,57.02]
[1757601502996,6.88,226.79,226.65,7.4]
[1757601513023,7.26,226.87,226.65,7.4]
[1757601515225,7.26,226.87,226.67,7.48]
[1757601515826,7.26,226.87,226.69,7.48]
[1757601520129,7.26,226.87,226.62,13.0976747]
[1757601520130,7.26,226.87,226.71,7.48]
[1757601522731,7.26,226.87,226.72,34.26]
[1757601522921,7.26,226.91,226.73,7.48]
[1757601530737,7.26,226.91,226.74,7.48]
[1757601531334,7.26,227.01,226.75,4.90930889]
[1757601531535,7.26,227.01,226.79,4.90930889]
[1757601531735,7.26,227.01,226.8,7.48]
[1757601531933,7.26,227.01,226.82,7.48]
[1757601532433,7.26,227.01,226.84,7.48]
[1757601532636,105.94008522,227.02,226.85,41.52]
[1757601532837,7.26,227.01,226.76,4.90930889]
[1757601533032,7.26,227.01,226.78,7.48]
[1757601535132,7.26,227.01,226.79,7.48]
[1757601535337,7.26,227.01,226.8,7.48]
[1757601536241,105.94008522,227.02,226.81,113.06]
[1757601536444,7.26,227.01,226.82,7.48]
[1757601536843,7.26,227.01,226.83,34.28]
[1757601537142,105.94008522,227.02,226.83,34.28]
[1757601537537,7.34,227.01,226.82,29.78]
[1757601537740,7.34,227.01,226.82,7.48]
[1757601539342,296.16,227.0,226.74,11.72930889]
[1757601539642,8.10714503,226.97,226.74,6.82]
[1757601541746,13.23,226.95,226.68,119.84]
[1757601541945,13.23,226.94,226.68,119.84]
[1757601542340,13.23,226.94,226.69,6.82]
[1757601542645,7.34,226.93,226.69,6.82]
[1757601544142,7.34,226.93,226.69,11.72930889]
[1757601544339,7.34,226.95,226.7,6.82]
[1757601544539,37.24,226.96,226.7,4.90930889]
[1757601544740,7.34,226.95,226.71,6.82]
[1757601544946,7.34,226.95,226.73,6.82]
[1757601545345,7.34,226.95,226.74,6.82]
[1757601546441,7.34,226.95,226.68,126.25]
[1757601546442,7.34,226.99,226.75,11.72930889]
[1757601546642,7.34,226.99,226.79,6.82]
[1757601547143,7.34,226.99,226.8,6.42]
[1757601547444,7.34,226.99,226.81,6.82]
[1757601547649,218.92008522,227.02,226.81,14.86]
[1757601547837,7.34,226.99,226.81,6.82]
[1757601550042,82.86,226.99,226.81,6.82]
[1757601551247,7.34,226.99,226.81,6.82]
[1757601551542,112.94,226.98,226.81,6.82]
[1757601551945,7.34,226.99,226.81,6.82]
[1757601552349,7.34,226.99,226.82,6.82]
[1757601555945,120.26,226.99,226.82,6.82]
[1757601557947,7.34,226.99,226.82,6.82]
[1757601558147,112.9,226.98,226.82,6.82]
[1757601558347,7.34,226.97,226.82,6.82]
[1757601558547,120.24,226.97,226.82,6.82]
[1757601559048,112.9,226.96,226.82,6.82]
[1757601559246,120.24,226.95,226.82,6.82]
[1757601559643,7.34,226.95,226.82,6.82]
[1757601561654,52.6,226.99,226.82,6.82]
[1757601562543,7.34,226.99,226.82,6.82]
[1757601563153,7.34,226.99,226.82,4.90930889]
[1757601563351,7.34,226.99,226.83,6.82]
[1757601564355,112.88,226.98,226.83,11.72930889]
[1757601564651,120.22,226.99,226.84,6.82]
[1757601564855,120.2,226.99,226.84,6.82]
[1757601565448,7.34,226.99,226.85,6.82]
[1757601565750,7.34,227.03,226.87,11.72930889]
[1757601565955,24.36,227.03,226.88,6.82]
[1757601566752,7.34,227.03,226.88,11.72930889]
[1757601566951,7.34,227.03,226.89,6.82]
[1757601567655,7.34,227.03,226.89,20.10438396]
[1757601567852,7.34,227.03,226.9,6.83]
[1757601569753,7.34,227.03,226.9,16.3]
[1757601569953,7.34,227.03,226.91,6.83]
[1757601573766,29.9,227.09,226.89,13.43123017]
[1757601574065,29.9,227.09,226.87,66.83930889]
[1757601574568,29.9,227.09,226.87,80.20947567]
[1757601574766,6.93,227.08,226.88,6.83]
[1757601580069,6.93,227.06,226.88,6.83]
[1757601580270,39.0,227.05,226.88,6.83]
[1757601580470,6.93,227.04,226.88,6.83]
[1757601581564,112.88282062,227.14,226.88,4.90930889]
[1757601581768,6.93,227.13,226.89,6.83]
[1757601581969,6.93,227.13,226.9,6.83]
[1757601583675,112.1160559,227.14,226.9,4.90930889]
[1757601583879,6.93,227.13,226.91,6.83]
[1757601585572,11.71017548,227.13,226.91,6.83]
[1757601585972,112.72,227.12,226.91,6.83]
[1757601586172,6.93,227.11,226.91,6.83]
[1757601586875,6.93,227.09,226.91,6.83]
[1757601587879,73.54,227.08,226.91,6.83]
[1757601588078,6.93,227.07,226.91,6.83]
[1757601589181,119.63,227.07,226.91,6.83]
[1757601592074,112.68,227.06,226.91,6.83]
[1757601592679,6.93,227.07,226.91,6.83]
[1757601593275,6.93,227.07,226.91,11.73930889]
[1757601593481,6.93,227.07,226.92,6.83]
[1757601595486,6.93,227.07,226.93,6.83]
[1757601595683,6.93,227.07,226.94,6.83]
[1757601595882,6.93,227.07,226.95,6.83]
[1757601596690,6.93,227.13,226.95,6.83]
[1757601597579,7.3,227.11,226.95,6.83]
[1757601598378,112.64,227.1,226.95,6.83]
[1757601598684,7.3,227.09,226.95,6.83]
[1757601601181,119.92,227.09,226.95,6.83]
[1757601602383,7.3,227.09,226.95,6.83]
[1757601602580,119.92,227.09,226.95,6.83]
[1757601602784,7.3,227.09,226.95,6.83]
[1757601602988,119.9,227.09,226.95,6.83]
[1757601603192,7.3,227.09,226.95,6.83]
[1757601603691,7.3,227.09,226.97,6.84]
[1757601613599,7.3,227.09,226.93,6.84]
[1757601613800,117.32017548,227.1,226.89,11.74930889]
[1757601613989,4.78017548,227.1,226.89,11.74930889]
[1757601614194,119.82,227.09,226.89,11.74930889]
[1757601614389,4.78017548,227.1,226.89,11.74930889]
[1757601614591,5.54694864,227.11,226.9,4.90930889]
[1757601614892,7.3,227.09,226.92,6.84]
[1757601616606,119.8,227.09,226.92,6.84]
[1757601617001,7.3,227.09,226.92,6.84]
[1757601617306,66.28,227.09,226.92,6.84]
[1757601617606,7.3,227.09,226.92,6.84]
[1757601617907,7.3,227.09,226.93,6.84]
[1757601617908,66.24,227.09,226.93,6.84]
[1757601619507,7.3,227.09,226.94,4.90930889]
[1757601619806,7.3,227.09,226.95,6.84]
[1757601620006,7.3,227.09,226.95,4.90930889]
[1757601620206,7.3,227.09,226.96,6.84]
[1757601625210,7.3,227.09,226.97,6.84]
[1757601630107,7.3,227.09,226.97,4.90930889]
[1757601630302,7.3,227.09,226.99,4.90930889]
[1757601630607,6.83,227.14,227.0,7.33]
[1757601634405,6.83,227.14,226.96,12.23930889]
[1757601634709,6.83,227.14,226.96,7.33]
[1757601635707,11.61017548,227.14,226.96,7.33]
[1757601635912,6.83,227.12,226.96,7.33]
[1757601638014,11.61017548,227.11,226.93,7.33]
[1757601638213,6.83,227.09,226.93,7.33]
[1757601638412,6.83,227.07,226.93,7.33]
[1757601640114,13.23,227.13,226.93,7.33]
[1757601640115,6.83,227.05,226.93,7.33]
[1757601641312,119.15,227.05,226.93,7.33]
[1757601643417,6.83,227.03,226.93,7.33]
[1757601647423,44.58,227.06,226.88,131.89641662]
[1757601647424,6.83,227.05,226.89,7.33]
[1757601648520,6.83,227.03,226.89,7.33]
[1757601650327,6.83,227.01,226.89,7.33]
[1757601661432,20.43,227.01,226.79,4.90930889]
[1757601661629,7.2,226.99,226.8,6.82]
[1757601661829,20.43,226.99,226.8,6.82]
[1757601662025,7.2,226.97,226.8,6.82]
[1757601662234,7.2,226.95,226.8,6.82]
[1757601662536,7.2,226.93,226.8,6.82]
[1757601662837,7.2,226.91,226.8,6.82]
[1757601665727,13.42121202,226.99,226.8,6.82]
[1757601665925,58.93944906,226.98,226.8,6.82]
[1757601666134,7.2,226.96,226.8,6.82]
[1757601666438,7.2,227.0,226.82,4.90930889]
[1757601666635,7.2,227.0,226.84,6.82]
[1757601667738,7.2,227.05,226.86,6.82]
[1757601667936,3.51181552,227.04,226.87,6.82]
[1757601668129,3.51181552,227.03,226.87,6.82]
[1757601668349,7.2,227.05,226.87,4.90930889]
[1757601668538,3.51241789,227.04,226.88,6.82]
[1757601668740,7.2,227.05,226.88,6.82]
[1757601668941,3.51241823,227.04,226.88,6.82]
[1757601669134,7.2,227.05,226.88,6.82]
[1757601669342,7.2,227.03,226.89,6.82]
[1757601669942,7.2,227.07,226.89,6.82]
[1757601670142,3.51274313,227.06,226.89,6.82]
[1757601670341,3.51274313,227.05,226.89,6.82]
[1757601670542,7.2,227.07,226.9,6.82]
[1757601670743,3.51279699,227.06,226.9,6.82]
[1757601670945,3.51279699,227.05,226.9,6.82]
[1757601671145,7.2,227.07,226.9,6.82]
[1757601671346,7.2,227.05,226.9,6.82]
[1757601671538,3.51229201,227.04,226.9,6.82]
[1757601671733,7.2,227.05,226.9,6.82]
[1757601672043,7.2,227.03,226.9,6.82]
[1757601672642,296.12,227.08,226.9,6.82]
[1757601672845,10.71272412,227.07,226.9,6.82]
[1757601673040,3.51272412,227.06,226.91,6.82]
[1757601673241,7.2,227.07,226.92,6.82]
[1757601674238,7.2,227.11,226.93,6.82]
[1757601674440,3.51354317,227.1,226.95,6.82]
[1757601674641,3.51354317,227.09,226.95,6.82]
[1757601674945,7.2,227.11,226.95,6.82]
[1757601675242,3.51311756,227.1,226.95,6.82]
[1757601675448,0.54955085,227.15,226.95,11.72930889]
[1757601675748,3.51323166,227.14,226.96,6.82]
[1757601675941,3.51323166,227.13,226.97,6.82]
[1757601676139,3.51323166,227.12,226.97,6.82]
[1757601676442,7.2,227.13,226.97,6.82]
[1757601676643,3.56191199,227.12,226.97,6.82]
[1757601676844,7.2,227.13,226.97,6.82]
[1757601677141,3.56191089,227.12,226.97,6.82]
[1757601677346,7.2,227.13,226.97,6.82]
[1757601677642,3.5612302,227.12,226.97,6.82]
[1757601677847,7.2,227.13,226.97,6.82]
[1757601678142,3.56182736,227.12,226.97,6.82]
[1757601678343,7.2,227.13,226.97,6.82]
[1757601678545,3.56162592,227.12,226.97,6.82]
[1757601678755,7.2,227.13,226.97,6.82]
[1757601678946,3.56140741,227.12,226.97,6.82]
[1757601679144,7.2,227.13,226.97,6.82]
[1757601682249,7.2,227.13,226.97,11.72930889]
[1757601682448,7.2,227.13,226.98,6.82]
[1757601683947,7.2,227.13,227.0,6.82]
[1757601685847,7.2,227.13,227.0,13.46027788]
[1757601686049,7.2,227.13,227.01,6.82]
[1757601696258,0.54955085,227.15,227.0,71.46316254]
[1757601696259,7.05,227.14,227.0,13.08316254]
[1757601696562,7.05,227.14,227.0,6.89]
[1757601698471,0.54955085,227.15,227.0,6.89]
[1757601698472,0.54955085,227.15,227.0,19.86540136]
[1757601698864,7.05,227.14,227.0,19.86540136]
[1757601699063,0.54955085,227.15,227.0,19.86540136]
[1757601699660,7.05,227.14,227.0,19.86540136]
[1757601699861,0.54955085,227.15,227.0,19.86540136]
[1757601700063,7.05,227.14,227.0,19.86540136]
[1757601700263,0.54955085,227.15,227.0,19.86540136]
[1757601700458,7.05,227.14,227.0,19.86540136]
[1757601700765,0.54955085,227.15,226.93,6.89]
[1757601700766,7.05,227.12,226.93,6.89]
[1757601701066,7.05,227.1,226.93,6.89]
[1757601702965,7.05,227.08,226.93,6.89]
[1757601703265,26.34,227.07,226.86,4.90930889]
[1757601703563,10.59734188,227.06,226.87,6.89]
[1757601703764,7.05,227.06,226.87,6.89]
[1757601705861,3.52345346,227.05,226.87,6.89]
[1757601706065,7.05,227.04,226.87,6.89]
[1757601706466,7.05,227.02,226.87,6.89]
[1757601706659,7.05,227.06,226.82,6.89]
[1757601706868,7.05,227.04,226.82,6.89]
[1757601707066,3.52407715,227.03,226.82,6.89]
[1757601707266,7.05,227.01,226.82,20.24987743]
[1757601707570,7.05,227.06,226.82,6.89]
[1757601707774,7.05,227.04,226.82,6.89]
[1757601707967,7.05,227.02,226.82,6.89]
[1757601708368,7.05,227.0,226.82,6.89]
[1757601709171,7.05,227.0,226.82,20.18641636]
[1757601709372,7.05,227.0,226.83,6.89]
[1757601710872,3.52744617,226.99,226.83,6.89]
[1757601711068,7.05,226.98,226.83,6.89]
[1757601714170,7.05,226.96,226.83,6.89]
[1757601714677,7.05,226.96,226.79,30.49]
[1757601714871,3.52496521,226.95,226.79,30.49]
[1757601715070,83.52,226.97,226.79,30.49]
[1757601715271,7.05,226.95,226.79,30.49]
[1757601715465,7.05,227.02,226.79,30.49]
[1757601715669,7.05,227.0,226.8,6.89]
[1757601715871,7.05,226.98,226.8,6.89]
[1757601716069,7.05,226.96,226.8,6.89]
[1757601719980,7.1,227.04,226.8,6.89]
[1757601720180,7.1,227.02,226.8,6.89]
[1757601720778,7.1,227.02,226.81,7.27]
[1757601721977,7.1,227.1,226.83,7.20758407]
[1757601722179,3.51988696,227.09,226.85,7.27]
[1757601722382,7.1,227.1,226.85,7.20758407]
[1757601722682,7.1,227.1,226.87,7.27]
[1757601722883,7.1,227.1,226.89,7.27]
[1757601723083,7.1,227.1,226.91,7.27]
[1757601723881,7.1,227.14,226.93,7.27]
[1757601724081,13.60956661,227.13,226.95,7.27]
[1757601724282,7.1,227.14,226.95,7.27]
[1757601725083,7.1,227.14,226.96,7.27]
[1757601726883,7.1,227.14,226.97,7.27]
[1757601729678,7.1,227.14,226.99,7.27]
[1757601734284,7.1,227.14,227.0,111.62]
[1757601734484,7.1,227.14,226.99,7.27]
[1757601734786,0.54955085,227.15,226.99,43.83]
[1757601734985,0.54955085,227.15,226.99,7.27]
[1757601735187,7.1,227.14,226.99,7.27]
[1757601740086,7.1,227.14,226.97,58.12]
[1757601740287,7.1,227.14,226.95,20.49436754]
[1757601740490,7.1,227.12,226.95,20.49436754]
[1757601740792,0.54955085,227.15,226.95,20.49436754]
[1757601740983,3.54071285,227.14,226.95,20.49436754]
[1757601741182,7.1,227.12,226.95,20.49436754]
[1757601741382,0.54955085,227.15,226.95,20.49436754]
[1757601741586,3.54053837,227.14,226.95,20.49436754]
[1757601741791,3.54053837,227.13,226.95,20.49436754]
[1757601742085,7.1,227.14,226.95,20.49436754]
[1757601742282,7.1,227.12,226.95,7.27]
[1757601742585,3.53988837,227.11,226.95,7.27]
[1757601742782,7.1,227.1,226.95,7.27]
[1757601743384,7.1,227.14,226.89,7.27]
[1757601743585,7.1,227.12,226.89,7.27]
[1757601743799,7.1,227.1,226.89,7.27]
[1757601743990,16.34,227.1,226.89,7.27]
[1757601744994,16.34,227.1,226.89,20.78835501]
[1757601745196,7.1,227.09,226.9,7.27]
[1757601749598,7.1,227.09,226.92,7.07]
[1757601750498,6.91,227.14,226.92,7.07]
[1757601750896,6.91,227.14,226.93,7.07]
[1757601752695,6.91,227.14,226.95,7.07]
[1757601754002,6.91,227.14,226.97,7.07]
[1757601755895,3.54052911,227.13,226.93,7.07]
[1757601756096,6.91,227.14,226.93,7.07]
[1757601756296,6.91,227.12,226.93,7.07]
[1757601758608,6.91,227.12,226.95,7.07]
[1757601759394,6.91,227.12,226.96,7.07]
[1757601759595,6.91,227.12,226.97,7.07]
[1757601760606,0.54955085,227.15,226.99,7.07]
[1757601760802,6.91,227.14,226.99,7.07]
[1757601761200,6.91,227.14,227.0,88.7]
[1757601761401,0.54955085,227.15,227.0,88.7]
[1757601761800,6.91,227.14,227.0,88.7]
[1757601762104,0.54955085,227.15,227.0,88.7]
[1757601762400,3.55027441,227.14,227.0,88.7]
[1757601762606,6.91,227.14,227.0,88.7]
[1757601763102,0.54955085,227.15,227.0,88.7]
[1757601763301,6.91,227.13,227.0,88.7]
[1757601763507,6.91,227.13,227.01,7.07]
[1757601764308,6.91,227.11,227.01,7.07]
[1757601770313,6.91,227.11,227.01,13.06203884]
[1757601770615,6.91,227.11,227.02,7.07]
[1757601777518,6.91,227.11,227.02,118.37]
[1757601781721,6.91,227.11,227.03,7.36]
[1757601781922,0.54955085,227.15,227.03,7.36]
[1757601781923,6.97,227.14,227.03,7.36]
[1757601785720,6.97,227.14,227.04,7.36]
[1757601789527,6.97,227.14,227.04,118.56]
[1757601789726,6.97,227.14,227.05,7.36]
[1757601793429,0.54955085,227.15,227.07,7.20758407]
[1757601793625,0.54955085,227.15,227.08,7.36]
[1757601793927,0.54955085,227.15,227.09,7.36]
[1757601794925,0.54955085,227.15,227.07,69.20758407]
[1757601795226,0.54955085,227.15,227.08,7.36]
[1757601795427,0.54955085,227.15,227.1,7.36]
[1757601795627,0.54955085,227.15,227.09,111.14]
[1757601795828,0.54955085,227.15,227.1,7.36]
[1757601796024,0.54955085,227.15,227.12,7.36]
[1757601796219,0.58258476,227.22,227.12,7.36]
[1757601796422,0.58258476,227.22,227.12,14.56758407]
[1757601796622,0.58258476,227.22,227.13,7.36]
[1757601797026,0.58258476,227.22,227.15,7.36]
[1757601797233,0.05833034,227.22,227.16,7.36]
[1757601797431,0.05833034,227.22,227.18,7.36]
[1757601797631,0.05833034,227.22,227.2,7.36]
[1757601797928,0.61561866,227.3,227.2,7.36]
[1757601800331,0.61561866,227.3,227.22,7.36]
[1757601800735,0.61561866,227.3,227.23,99.86]
[1757601801232,7.58561866,227.3,227.22,7.36]
[1757601801432,7.58561866,227.3,227.23,111.06]
[1757601801931,7.58561866,227.3,227.24,111.06]
[1757601804236,7.58561866,227.3,227.22,7.36]
[1757601804635,7.58561866,227.3,227.23,39.86]
[1757601807434,0.61561866,227.3,227.24,7.56]
[1757601808529,0.61561866,227.3,227.25,7.56]
[1757601808943,0.61561866,227.3,227.15,13.22]
[1757601809139,0.61561866,227.3,227.17,7.56]
[1757601810834,0.61561866,227.3,227.19,7.56]
[1757601811035,0.61561866,227.3,227.21,7.56]
[1757601813539,6.94,227.29,227.14,13.07790843]
[1757601813738,6.94,227.29,227.16,7.56]
[1757601817034,0.61561866,227.3,227.17,110.9]
[1757601817239,6.94,227.29,227.16,7.56]
[1757601817539,6.94,227.29,227.18,110.9]
[1757601817731,0.61561866,227.3,227.09,7.20758407]
[1757601817937,0.61561866,227.3,227.1,34.08]
[1757601818147,6.94,227.28,227.1,34.08]
[1757601818338,6.94,227.29,227.11,7.56]
[1757601819143,0.61561866,227.3,227.11,13.26756095]
[1757601819444,6.94,227.29,227.12,7.56]
[1757601821743,0.61561866,227.3,227.14,7.56]
[1757601822042,6.94,227.29,227.14,7.56]
[1757601823745,6.94,227.29,227.15,34.04]
[1757601823944,0.61561866,227.3,227.15,34.04]
[1757601824341,6.94,227.29,227.16,7.56]
[1757601826046,0.61561866,227.3,227.17,51.0]
[1757601826247,6.94,227.29,227.17,51.0]
[1757601826448,0.61561866,227.3,227.17,51.0]
[1757601826647,6.94,227.29,227.16,7.56]
[1757601826849,6.94,227.29,227.17,18.36]
[1757601827147,0.61561866,227.3,227.17,18.36]
[1757601828348,6.94,227.29,227.17,18.36]
[1757601828549,0.61561866,227.3,227.17,18.36]
[1757601828743,6.94,227.29,227.16,7.56]
[1757601828941,6.94,227.29,227.12,7.56]
[1757601829148,3.60948355,227.28,227.12,7.56]
[1757601829347,3.60948355,227.27,227.12,46.94]
[1757601829547,3.60948355,227.26,227.12,46.94]
[1757601829742,0.61561866,227.3,227.12,46.94]
[1757601829743,6.94,227.29,227.12,46.94]
[1757601829949,6.94,227.27,227.13,7.56]
[1757601830250,6.94,227.25,227.13,7.56]
[1757601833356,6.94,227.25,227.15,7.56]
[1757601833654,6.94,227.25,227.16,58.36]
[1757601833857,6.94,227.25,227.15,7.56]
[1757601834049,6.94,227.25,227.17,110.84]
[1757601834857,6.94,227.25,227.15,7.56]
[1757601835061,6.94,227.25,227.16,58.3]
[1757601835559,6.94,227.29,227.15,7.56]
[1757601835760,6.94,227.27,227.12,7.56]
[1757601835962,6.94,227.25,227.13,44.16]
[1757601836259,0.61561866,227.3,227.13,44.16]
[1757601836456,6.59974291,227.29,227.13,77.12]
[1757601836757,6.94,227.27,227.12,118.38]
[1757601837062,3.61746587,227.26,227.12,118.38]
[1757601837256,6.94,227.24,227.12,118.38]
[1757601838461,6.94,227.24,227.13,110.82]
[1757601840461,0.61561866,227.3,227.13,110.82]
[1757601840660,9.97330414,227.29,227.13,110.82]
[1757601840866,6.61786417,227.28,227.13,110.82]
[1757601841060,6.93,227.26,227.12,7.56]
[1757601841261,6.93,227.24,227.14,7.49]
[1757601844666,0.61561866,227.3,227.14,7.49]
[1757601844862,10.55777543,227.29,227.14,7.49]
[1757601845064,3.62777543,227.28,227.14,7.49]
[1757601845364,3.62777543,227.27,227.14,7.49]
[1757601845570,6.93,227.29,227.14,7.49]
[1757601846370,0.61561866,227.3,227.16,7.20758407]
[1757601846563,0.61561866,227.3,227.19,7.20758407]
[1757601846764,0.61561866,227.3,227.2,7.49]
[1757601847969,0.61561866,227.3,227.22,7.49]
[1757601849371,0.61561866,227.3,227.23,78.52]
[1757601849667,0.61561866,227.3,227.23,110.74]
[1757601849871,0.61561866,227.3,227.24,110.74]
[1757601850074,0.61561866,227.3,227.24,118.23]
[1757601851769,0.61561866,227.3,227.24,7.49]
[1757601851967,0.61561866,227.3,227.26,7.49]
[1757601852664,0.61561866,227.3,227.27,7.49]
[1757601853277,7.54561866,227.3,227.2,7.49]
[1757601853477,7.54561866,227.3,227.21,110.72]
[1757601853779,7.54561866,227.3,227.22,89.32]
[1757601856577,0.61561866,227.3,227.23,7.49]
[1757601856980,0.61561866,227.3,227.23,117.55]
[1757601857379,0.61561866,227.3,227.24,7.49]
[1757601858882,0.61561866,227.3,227.22,110.68]
[1757601859082,0.61561866,227.3,227.23,7.49]
[1757601859775,0.61561866,227.3,227.24,110.68]
[1757601860384,0.61561866,227.3,227.25,7.49]
[1757601860583,0.61561866,227.3,227.24,110.68]